[Event "*** Titled Tuesday Blitz"]
[Site "Chess.com"]
[Date "2020.05.19"]
[Round "7"]
[White "Patolindo"]
[Black "pedro_nascimento85"]
[Result "1-0"]
[WhiteElo "2114"]
[BlackElo "1724"]
[TimeControl "180+1"]
[EndTime "13:20:48 PDT"]
[Termination "Patolindo won on time"]

1. d4 {[%clk 0:03:00.9]} 1... d5 {[%clk 0:02:58.1]} 2. c4 {[%clk 0:03:00.1]}
2... e6 {[%clk 0:02:57.5]} 3. Nf3 {[%clk 0:02:59.3]} 3... Nf6 {[%clk 0:02:56.4]}
4. g3 {[%clk 0:02:55.2]} 4... Be7 {[%clk 0:02:55.1]} 5. Bg2 {[%clk 0:02:55]}
5... O-O {[%clk 0:02:53.9]} 6. Nbd2 {[%clk 0:02:55.5]} 6... b6 {[%clk
0:02:51.8]} 7. cxd5 {[%clk 0:02:54.6]} 7... exd5 {[%clk 0:02:45.8]} 8. O-O
{[%clk 0:02:54.2]} 8... Be6 {[%clk 0:02:42.4]} 9. Ne5 {[%clk 0:02:48.9]} 9... c5
{[%clk 0:02:36.6]} 10. Ndf3 {[%clk 0:02:42.5]} 10... Qc7 {[%clk 0:02:28.6]} 11.
Bf4 {[%clk 0:02:40.6]} 11... Qb7 {[%clk 0:02:19]} 12. Ng5 {[%clk 0:02:23.8]}
12... Bf5 {[%clk 0:01:54.3]} 13. Re1 {[%clk 0:02:06.3]} 13... h6 {[%clk
0:01:49]} 14. Ngf3 {[%clk 0:02:04]} 14... Nbd7 {[%clk 0:01:40.9]} 15. Rc1 {[%clk
0:01:59.8]} 15... c4 {[%clk 0:01:34.8]} 16. Nxd7 {[%clk 0:01:57.1]} 16... Qxd7
{[%clk 0:01:27]} 17. Ne5 {[%clk 0:01:56.4]} 17... Qe8 {[%clk 0:01:20.5]} 18. b3
{[%clk 0:01:41.7]} 18... b5 {[%clk 0:01:16.5]} 19. Qd2 {[%clk 0:01:19.8]} 19...
Kh7 {[%clk 0:01:08.8]} 20. h3 {[%clk 0:01:13.4]} 20... a5 {[%clk 0:01:05.8]} 21.
Red1 {[%clk 0:00:59.2]} 21... Ba3 {[%clk 0:00:59]} 22. Ra1 {[%clk 0:00:55.8]}
22... Nd7 {[%clk 0:00:34.8]} 23. Bxd5 {[%clk 0:00:49.7]} 23... Rd8 {[%clk
0:00:19.5]} 24. g4 {[%clk 0:00:48.1]} 24... Bg6 {[%clk 0:00:18.8]} 25. Bc6
{[%clk 0:00:46.9]} 25... Qe6 {[%clk 0:00:15.9]} 26. d5 {[%clk 0:00:39.5]} 26...
Qe7 {[%clk 0:00:12.6]} 27. Bxd7 {[%clk 0:00:25.9]} 27... Rxd7 {[%clk 0:00:11.8]}
28. bxc4 {[%clk 0:00:26.8]} 28... Rdd8 {[%clk 0:00:10.3]} 29. Nc6 {[%clk
0:00:22.8]} 29... Qf6 {[%clk 0:00:07.6]} 30. Nxd8 {[%clk 0:00:20.9]} 30... Rxd8
{[%clk 0:00:08.5]} 31. Qxa5 {[%clk 0:00:20.6]} 31... b4 {[%clk 0:00:07.6]} 32.
Be5 {[%clk 0:00:17.9]} 32... Qh4 {[%clk 0:00:05.9]} 33. Bg3 {[%clk 0:00:16.9]}
33... Qxh3 {[%clk 0:00:05.4]} 34. Qxd8 {[%clk 0:00:16.3]} 34... Be4 {[%clk
0:00:04.2]} 35. f3 {[%clk 0:00:10.1]} 35... b3 {[%clk 0:00:02.1]} 36. Qc7 {[%clk
0:00:06.4]} 36... Bc5+ {[%clk 0:00:02]} 37. Qxc5 {[%clk 0:00:06]} 1-0

[Event "*** Titled Tuesday Blitz"]
[Site "Chess.com"]
[Date "2020.05.19"]
[Round "7"]
[White "Karacsonyi_Gellert"]
[Black "Pavel_Mir"]
[Result "1-0"]
[WhiteElo "2460"]
[BlackElo "2198"]
[TimeControl "180+1"]
[EndTime "13:20:49 PDT"]
[Termination "Karacsonyi_Gellert won by resignation"]

1. e4 {[%clk 0:02:55.5]} 1... e5 {[%clk 0:02:59.3]} 2. Nf3 {[%clk 0:02:54.4]}
2... Nc6 {[%clk 0:02:59.3]} 3. Bb5 {[%clk 0:02:54.6]} 3... a6 {[%clk 0:02:58.9]}
4. Bxc6 {[%clk 0:02:54.9]} 4... dxc6 {[%clk 0:02:58.1]} 5. O-O {[%clk
0:02:55.8]} 5... f6 {[%clk 0:02:56.5]} 6. d4 {[%clk 0:02:54.5]} 6... exd4 {[%clk
0:02:56.5]} 7. Nxd4 {[%clk 0:02:54]} 7... c5 {[%clk 0:02:56.4]} 8. Nb3 {[%clk
0:02:53.4]} 8... Qxd1 {[%clk 0:02:56]} 9. Rxd1 {[%clk 0:02:54.3]} 9... Bd7
{[%clk 0:02:53.5]} 10. Bf4 {[%clk 0:02:54.3]} 10... O-O-O {[%clk 0:02:49.4]} 11.
Nc3 {[%clk 0:02:54.6]} 11... Re8 {[%clk 0:02:27.4]} 12. Nd5 {[%clk 0:02:37]}
12... Bd6 {[%clk 0:02:13.7]} 13. Bxd6 {[%clk 0:02:32.1]} 13... cxd6 {[%clk
0:02:13.2]} 14. Nb6+ {[%clk 0:02:32.6]} 14... Kc7 {[%clk 0:02:11.3]} 15. Nxd7
{[%clk 0:02:33.5]} 15... Kxd7 {[%clk 0:02:11.5]} 16. Nxc5+ {[%clk 0:02:34.4]}
16... Kc6 {[%clk 0:02:11.3]} 17. Nb3 {[%clk 0:02:31]} 17... Rxe4 {[%clk
0:02:10.4]} 18. Nd4+ {[%clk 0:02:25.6]} 18... Kc7 {[%clk 0:02:04.8]} 19. Nf5
{[%clk 0:02:25.9]} 19... Ne7 {[%clk 0:01:46.9]} 20. Nxd6 {[%clk 0:02:22.4]}
20... Re2 {[%clk 0:01:44.7]} 21. Nc4 {[%clk 0:02:11.5]} 21... Rxc2 {[%clk
0:01:37.3]} 22. Rac1 {[%clk 0:02:01]} 22... Rxc1 {[%clk 0:01:37.3]} 23. Rxc1
{[%clk 0:02:01.9]} 23... Nc6 {[%clk 0:01:28.3]} 24. Kf1 {[%clk 0:01:58.3]} 24...
Re8 {[%clk 0:01:26.2]} 25. f3 {[%clk 0:01:54.1]} 25... Re6 {[%clk 0:01:14.6]}
26. Kf2 {[%clk 0:01:53.8]} 26... b5 {[%clk 0:01:12.4]} 27. Ne3 {[%clk
0:01:47.5]} 27... Kb7 {[%clk 0:00:57.6]} 28. Rd1 {[%clk 0:01:45.2]} 28... Re7
{[%clk 0:00:47.8]} 29. a3 {[%clk 0:01:42.5]} 29... Ne5 {[%clk 0:00:44.2]} 30. b4
{[%clk 0:01:35.9]} 30... Rc7 {[%clk 0:00:41.6]} 31. f4 {[%clk 0:01:34]} 31...
Nc4 {[%clk 0:00:39.2]} 32. Nxc4 {[%clk 0:01:27.6]} 32... Rxc4 {[%clk 0:00:31.6]}
33. Rd7+ {[%clk 0:01:27.6]} 33... Rc7 {[%clk 0:00:31.7]} 34. Rd8 {[%clk
0:01:05.7]} 34... Rc2+ {[%clk 0:00:27.4]} 35. Kf3 {[%clk 0:01:03.2]} 35... Rc3+
{[%clk 0:00:27.4]} 36. Ke4 {[%clk 0:01:03.7]} 36... Rxa3 {[%clk 0:00:26.9]} 37.
Rd7+ {[%clk 0:01:03.7]} 37... Kc6 {[%clk 0:00:27.1]} 38. Rxg7 {[%clk 0:01:03.4]}
38... Rb3 {[%clk 0:00:27.1]} 39. Rxh7 {[%clk 0:01:03.6]} 39... Rxb4+ {[%clk
0:00:27.4]} 40. Kf5 {[%clk 0:01:00.2]} 40... a5 {[%clk 0:00:23.4]} 41. g4 {[%clk
0:01:00.6]} 41... a4 {[%clk 0:00:23.5]} 42. Ra7 {[%clk 0:01:01.1]} 42... Kb6
{[%clk 0:00:21.6]} 43. Ra8 {[%clk 0:01:01.5]} 43... Kb7 {[%clk 0:00:21.8]} 44.
Ra5 {[%clk 0:00:59.3]} 44... Kb6 {[%clk 0:00:21.9]} 45. Ra8 {[%clk 0:00:59.5]}
45... Kb7 {[%clk 0:00:22.3]} 46. Rd8 {[%clk 0:00:40.2]} 46... a3 {[%clk
0:00:22]} 47. Rd1 {[%clk 0:00:40.5]} 47... a2 {[%clk 0:00:21.7]} 48. Ra1 {[%clk
0:00:40.9]} 48... Ra4 {[%clk 0:00:22.1]} 49. g5 {[%clk 0:00:40.4]} 49... b4
{[%clk 0:00:22.5]} 50. g6 {[%clk 0:00:40.5]} 50... b3 {[%clk 0:00:22.4]} 51. g7
{[%clk 0:00:41]} 51... Ra8 {[%clk 0:00:22.2]} 52. Kxf6 {[%clk 0:00:36.3]} 52...
b2 {[%clk 0:00:22.5]} 53. Rxa2 {[%clk 0:00:36.3]} 53... Rxa2 {[%clk 0:00:22.6]}
54. g8=Q {[%clk 0:00:33.8]} 54... b1=Q {[%clk 0:00:22.9]} 55. Qd5+ {[%clk
0:00:33.3]} 55... Ka6 {[%clk 0:00:21.7]} 56. Qa8+ {[%clk 0:00:31.3]} 56... Kb5
{[%clk 0:00:21.3]} 57. Qb7+ {[%clk 0:00:30.9]} 57... Ka4 {[%clk 0:00:21.1]} 58.
Qxb1 {[%clk 0:00:31.8]} 58... Rb2 {[%clk 0:00:21.3]} 59. Qxb2 {[%clk 0:00:31.3]}
1-0

[Event "*** Titled Tuesday Blitz"]
[Site "Chess.com"]
[Date "2020.05.19"]
[Round "7"]
[White "Godzillator"]
[Black "Stronger1799"]
[Result "0-1"]
[WhiteElo "2435"]
[BlackElo "2331"]
[TimeControl "180+1"]
[EndTime "13:20:49 PDT"]
[Termination "Stronger1799 won on time"]

1. d4 {[%clk 0:03:00.9]} 1... Nf6 {[%clk 0:02:17.7]} 2. c4 {[%clk 0:03:01]} 2...
g6 {[%clk 0:02:17.8]} 3. Nc3 {[%clk 0:03:01.4]} 3... d5 {[%clk 0:02:18.2]} 4.
Nf3 {[%clk 0:03:01.3]} 4... Bg7 {[%clk 0:02:18]} 5. h4 {[%clk 0:03:01.7]} 5...
h5 {[%clk 0:02:17.3]} 6. cxd5 {[%clk 0:03:00.4]} 6... Nxd5 {[%clk 0:02:17.1]} 7.
Qb3 {[%clk 0:02:54.8]} 7... Nb6 {[%clk 0:02:15.5]} 8. e4 {[%clk 0:02:54]} 8...
O-O {[%clk 0:02:14.1]} 9. Be3 {[%clk 0:02:53.9]} 9... Bg4 {[%clk 0:02:13.5]} 10.
Ng5 {[%clk 0:02:53.4]} 10... Bxd4 {[%clk 0:02:09.1]} 11. Bxd4 {[%clk 0:02:29]}
11... Qxd4 {[%clk 0:02:08.1]} 12. a4 {[%clk 0:02:29.2]} 12... Nc6 {[%clk
0:01:58.7]} 13. a5 {[%clk 0:02:26]} 13... Rad8 {[%clk 0:01:57.9]} 14. Qc2 {[%clk
0:02:21.6]} 14... Nb4 {[%clk 0:01:50.3]} 15. Qc1 {[%clk 0:02:15.7]} 15... Nc4
{[%clk 0:01:47.9]} 16. f3 {[%clk 0:02:07.4]} 16... Ne3 {[%clk 0:01:03.7]} 17.
Ra4 {[%clk 0:01:27.3]} 17... Nec2+ {[%clk 0:00:42.1]} 18. Ke2 {[%clk 0:01:27.1]}
18... Bd7 {[%clk 0:00:33.3]} 19. Rxb4 {[%clk 0:01:08.9]} 19... Nxb4 {[%clk
0:00:33.5]} 20. Qe3 {[%clk 0:01:04.3]} 20... c5 {[%clk 0:00:25.4]} 21. g3 {[%clk
0:00:51.5]} 21... Nc2 {[%clk 0:00:18.5]} 22. Qxd4 {[%clk 0:00:48.8]} 22... Nxd4+
{[%clk 0:00:19.4]} 23. Kf2 {[%clk 0:00:48.9]} 23... e6 {[%clk 0:00:09]} 24. Bc4
{[%clk 0:00:47.1]} 24... Kg7 {[%clk 0:00:08.8]} 25. e5 {[%clk 0:00:45.2]} 25...
b5 {[%clk 0:00:08]} 26. axb6 {[%clk 0:00:43.5]} 26... axb6 {[%clk 0:00:08]} 27.
Nce4 {[%clk 0:00:43.9]} 27... Bc6 {[%clk 0:00:07]} 28. Nd6 {[%clk 0:00:27.1]}
28... Bd5 {[%clk 0:00:05.4]} 29. Bxd5 {[%clk 0:00:24.7]} 29... exd5 {[%clk
0:00:06.1]} 30. f4 {[%clk 0:00:22.6]} 30... f6 {[%clk 0:00:04.1]} 31. exf6+
{[%clk 0:00:10.1]} 31... Rxf6 {[%clk 0:00:03.2]} 32. Nb7 {[%clk 0:00:09.1]}
32... Rd7 {[%clk 0:00:02.6]} 33. Re1 {[%clk 0:00:03.2]} 33... Rxb7 {[%clk
0:00:02.4]} 34. Re8 {[%clk 0:00:03.4]} 34... Rd7 {[%clk 0:00:02.2]} 35. Rb8
{[%clk 0:00:03.1]} 35... Nf5 {[%clk 0:00:02.3]} 36. g4 {[%clk 0:00:02.8]} 36...
hxg4 {[%clk 0:00:02.5]} 37. h5 {[%clk 0:00:02.5]} 37... gxh5 {[%clk 0:00:02.6]}
38. Rc8 {[%clk 0:00:02]} 38... Nh6 {[%clk 0:00:02.6]} 39. Rc6 {[%clk 0:00:01.6]}
39... Rxf4+ {[%clk 0:00:02.9]} 0-1

[Event "*** Titled Tuesday Blitz"]
[Site "Chess.com"]
[Date "2020.05.19"]
[Round "7"]
[White "IIIlllII1llIl"]
[Black "Alopekos"]
[Result "0-1"]
[WhiteElo "2624"]
[BlackElo "2490"]
[TimeControl "180+1"]
[EndTime "13:20:50 PDT"]
[Termination "Alopekos won on time"]

1. e4 {[%clk 0:03:00.9]} 1... e5 {[%clk 0:02:59.2]} 2. Nf3 {[%clk 0:03:00.4]}
2... Nc6 {[%clk 0:02:59.2]} 3. Bb5 {[%clk 0:02:57.8]} 3... a6 {[%clk 0:02:59.2]}
4. Ba4 {[%clk 0:02:56.8]} 4... Nf6 {[%clk 0:02:59.1]} 5. O-O {[%clk 0:02:56.5]}
5... b5 {[%clk 0:02:59.7]} 6. Bb3 {[%clk 0:02:56.3]} 6... Bc5 {[%clk 0:03:00.3]}
7. d3 {[%clk 0:02:40.4]} 7... d6 {[%clk 0:02:59.7]} 8. c3 {[%clk 0:02:24.8]}
8... O-O {[%clk 0:02:59]} 9. h3 {[%clk 0:02:07.5]} 9... Bb6 {[%clk 0:02:44.3]}
10. Re1 {[%clk 0:02:01.9]} 10... Ne7 {[%clk 0:02:42.6]} 11. Nbd2 {[%clk
0:01:37.2]} 11... Ng6 {[%clk 0:02:41.3]} 12. Nf1 {[%clk 0:01:35.7]} 12... Re8
{[%clk 0:02:30.2]} 13. Ng3 {[%clk 0:01:33.6]} 13... Bb7 {[%clk 0:02:23.5]} 14.
a4 {[%clk 0:01:18.3]} 14... d5 {[%clk 0:02:22.4]} 15. Qc2 {[%clk 0:01:11.1]}
15... c5 {[%clk 0:02:10.1]} 16. exd5 {[%clk 0:00:51.9]} 16... Bxd5 {[%clk
0:01:49]} 17. Bxd5 {[%clk 0:00:50.8]} 17... Qxd5 {[%clk 0:01:49.9]} 18. Ne4
{[%clk 0:00:44.8]} 18... Nh5 {[%clk 0:01:37.7]} 19. c4 {[%clk 0:00:30.6]} 19...
Qd7 {[%clk 0:01:07]} 20. a5 {[%clk 0:00:25.9]} 20... Ba7 {[%clk 0:01:05.2]} 21.
cxb5 {[%clk 0:00:16.6]} 21... axb5 {[%clk 0:01:04.9]} 22. Nxc5 {[%clk
0:00:14.6]} 22... Qd5 {[%clk 0:00:44.3]} 23. Ne4 {[%clk 0:00:11.1]} 23... Rac8
{[%clk 0:00:35.4]} 24. Nc3 {[%clk 0:00:10.5]} 24... Qd7 {[%clk 0:00:24.2]} 25.
Qb3 {[%clk 0:00:09.6]} 25... Nhf4 {[%clk 0:00:19.4]} 26. Bxf4 {[%clk 0:00:07.9]}
26... Nxf4 {[%clk 0:00:20.3]} 27. Rad1 {[%clk 0:00:05.6]} 27... Nxh3+ {[%clk
0:00:18.2]} 28. gxh3 {[%clk 0:00:03.3]} 28... Qxh3 {[%clk 0:00:19.1]} 29. Nxe5
{[%clk 0:00:02.4]} 29... Qg3+ {[%clk 0:00:15.5]} 30. Kh1 {[%clk 0:00:02.5]}
30... Qh3+ {[%clk 0:00:10.1]} 31. Kg1 {[%clk 0:00:02.2]} 31... Rxe5 {[%clk
0:00:10]} 32. Rxe5 {[%clk 0:00:02.2]} 32... Qg3+ {[%clk 0:00:10.2]} 33. Kh1
{[%clk 0:00:03.1]} 33... Qxe5 {[%clk 0:00:10.1]} 34. Qd5 {[%clk 0:00:04]} 34...
Qf6 {[%clk 0:00:06.3]} 35. Ne4 {[%clk 0:00:03.4]} 35... Qh6+ {[%clk 0:00:05.9]}
36. Kg2 {[%clk 0:00:03.8]} 36... Qg6+ {[%clk 0:00:05.6]} 37. Kf3 {[%clk
0:00:04.2]} 37... h6 {[%clk 0:00:05.7]} 38. Rh1 {[%clk 0:00:02.8]} 38... Re8
{[%clk 0:00:05.6]} 39. Rh5 {[%clk 0:00:02.4]} 39... Bb8 {[%clk 0:00:03.9]} 40.
Rf5 {[%clk 0:00:02]} 40... Kh7 {[%clk 0:00:03.1]} 41. a6 {[%clk 0:00:01.4]}
41... Re6 {[%clk 0:00:02.6]} 0-1

[Event "*** Titled Tuesday Blitz"]
[Site "Chess.com"]
[Date "2020.05.19"]
[Round "7"]
[White "Bossche-CM"]
[Black "Borsuk_Konstantin"]
[Result "0-1"]
[WhiteElo "2468"]
[BlackElo "2639"]
[TimeControl "180+1"]
[EndTime "13:20:50 PDT"]
[Termination "Borsuk_Konstantin won by resignation"]

1. e4 {[%clk 0:03:00.9]} 1... e6 {[%clk 0:02:59.3]} 2. d4 {[%clk 0:03:00.3]}
2... d5 {[%clk 0:02:59.9]} 3. exd5 {[%clk 0:02:59.5]} 3... exd5 {[%clk 0:03:00]}
4. Nf3 {[%clk 0:02:56.8]} 4... Bd6 {[%clk 0:02:56.5]} 5. Bd3 {[%clk 0:02:53.7]}
5... Qe7+ {[%clk 0:02:55.1]} 6. Qe2 {[%clk 0:02:52]} 6... Qxe2+ {[%clk
0:02:49.7]} 7. Kxe2 {[%clk 0:02:48.5]} 7... f6 {[%clk 0:02:49.1]} 8. Re1 {[%clk
0:02:48.4]} 8... Ne7 {[%clk 0:02:46.1]} 9. Nc3 {[%clk 0:02:43.2]} 9... c6 {[%clk
0:02:45.2]} 10. Kf1 {[%clk 0:02:43]} 10... Kf7 {[%clk 0:02:43.6]} 11. Ne2 {[%clk
0:02:42.4]} 11... g5 {[%clk 0:02:43]} 12. Ng3 {[%clk 0:02:31.5]} 12... h5 {[%clk
0:02:34.2]} 13. Bxg5 {[%clk 0:01:53.5]} 13... fxg5 {[%clk 0:02:30]} 14. Nxg5+
{[%clk 0:01:54.4]} 14... Kf6 {[%clk 0:02:22.6]} 15. Nh7+ {[%clk 0:01:53.3]}
15... Rxh7 {[%clk 0:02:03]} 16. Bxh7 {[%clk 0:01:51.5]} 16... h4 {[%clk
0:02:02.9]} 17. Ne2 {[%clk 0:01:32.7]} 17... Bxh2 {[%clk 0:01:49.9]} 18. Ng1
{[%clk 0:01:31.6]} 18... Bxg1 {[%clk 0:01:42.1]} 19. Kxg1 {[%clk 0:01:31.1]}
19... Bg4 {[%clk 0:01:31.2]} 20. Re3 {[%clk 0:01:15.6]} 20... Nd7 {[%clk
0:01:02.4]} 21. Rae1 {[%clk 0:01:05.1]} 21... Ng6 {[%clk 0:00:53.8]} 22. Bxg6
{[%clk 0:00:47.8]} 22... Kxg6 {[%clk 0:00:53.1]} 23. Re7 {[%clk 0:00:48.3]}
23... Bf5 {[%clk 0:00:42.1]} 24. c3 {[%clk 0:00:44.7]} 24... Rf8 {[%clk
0:00:37.2]} 25. Re8 {[%clk 0:00:34.3]} 25... Rf6 {[%clk 0:00:19.5]} 26. R1e7
{[%clk 0:00:28.4]} 26... b5 {[%clk 0:00:17.9]} 27. Rg8+ {[%clk 0:00:26.6]} 27...
Kh6 {[%clk 0:00:17.3]} 28. g3 {[%clk 0:00:13.8]} 28... hxg3 {[%clk 0:00:15.8]}
29. fxg3 {[%clk 0:00:14.7]} 29... Rg6 {[%clk 0:00:13.4]} 30. Rh8+ {[%clk
0:00:10.8]} 30... Kg5 {[%clk 0:00:13.1]} 31. Kf2 {[%clk 0:00:11.2]} 31... Nf6
{[%clk 0:00:12.5]} 32. Re5 {[%clk 0:00:11.6]} 32... Ng4+ {[%clk 0:00:12.3]} 33.
Kf3 {[%clk 0:00:12.3]} 33... Nxe5+ {[%clk 0:00:12.6]} 34. dxe5 {[%clk
0:00:13.2]} 34... Be4+ {[%clk 0:00:11.7]} 35. Ke3 {[%clk 0:00:12]} 35... c5
{[%clk 0:00:11.2]} 36. Rh7 {[%clk 0:00:10.5]} 36... Kf5 {[%clk 0:00:11.1]} 37.
Rxa7 {[%clk 0:00:10.2]} 37... Rxg3+ {[%clk 0:00:11.1]} 38. Kd2 {[%clk
0:00:07.8]} 38... Kxe5 {[%clk 0:00:10.5]} 39. b3 {[%clk 0:00:05.9]} 39... Rg2+
{[%clk 0:00:10.4]} 40. Kd1 {[%clk 0:00:06.3]} 40... d4 {[%clk 0:00:09.6]} 41.
Re7+ {[%clk 0:00:06.2]} 41... Kf4 {[%clk 0:00:09.2]} 42. Rf7+ {[%clk 0:00:06]}
42... Ke3 {[%clk 0:00:08.7]} 43. Rf1 {[%clk 0:00:04.6]} 43... dxc3 {[%clk
0:00:08.7]} 0-1

[Event "*** Titled Tuesday Blitz"]
[Site "Chess.com"]
[Date "2020.05.19"]
[Round "7"]
[White "StephenDedalus83"]
[Black "kirillshevchenko"]
[Result "0-1"]
[WhiteElo "2759"]
[BlackElo "2931"]
[TimeControl "180+1"]
[EndTime "13:20:51 PDT"]
[Termination "kirillshevchenko won by resignation"]

1. e4 {[%clk 0:03:00.9]} 1... c5 {[%clk 0:02:59.4]} 2. Nf3 {[%clk 0:03:00.4]}
2... d6 {[%clk 0:02:59.6]} 3. d4 {[%clk 0:03:00.9]} 3... cxd4 {[%clk 0:03:00.5]}
4. Nxd4 {[%clk 0:03:01.5]} 4... Nf6 {[%clk 0:03:01.2]} 5. Nc3 {[%clk 0:03:02]}
5... a6 {[%clk 0:03:01.8]} 6. g3 {[%clk 0:02:58.4]} 6... e5 {[%clk 0:03:01.5]}
7. Nde2 {[%clk 0:02:57.9]} 7... Be7 {[%clk 0:03:01.4]} 8. Bg2 {[%clk 0:02:57.3]}
8... b5 {[%clk 0:03:01.5]} 9. Nd5 {[%clk 0:02:56.5]} 9... Nbd7 {[%clk
0:02:58.3]} 10. Nec3 {[%clk 0:02:56.2]} 10... Bb7 {[%clk 0:02:55.8]} 11. O-O
{[%clk 0:02:44.4]} 11... Nb6 {[%clk 0:02:44.4]} 12. Nxf6+ {[%clk 0:02:39.9]}
12... Bxf6 {[%clk 0:02:43.4]} 13. b3 {[%clk 0:02:36.8]} 13... Rc8 {[%clk
0:02:40.5]} 14. Qd2 {[%clk 0:02:23]} 14... Qc7 {[%clk 0:02:35.2]} 15. Bb2 {[%clk
0:02:22]} 15... O-O {[%clk 0:02:34.8]} 16. Rac1 {[%clk 0:01:53.7]} 16... Rfd8
{[%clk 0:02:28.5]} 17. Nd5 {[%clk 0:01:46.7]} 17... Bxd5 {[%clk 0:01:57.9]} 18.
exd5 {[%clk 0:01:47.6]} 18... Qc5 {[%clk 0:01:57.2]} 19. Kh1 {[%clk 0:01:33.2]}
19... Re8 {[%clk 0:01:55.7]} 20. Rfe1 {[%clk 0:01:30.7]} 20... Re7 {[%clk
0:01:29.6]} 21. Re2 {[%clk 0:01:21.9]} 21... Rce8 {[%clk 0:01:26.4]} 22. Be4
{[%clk 0:01:21.2]} 22... g6 {[%clk 0:01:24.6]} 23. Bc3 {[%clk 0:01:15.2]} 23...
Bg5 {[%clk 0:01:12]} 24. Qxg5 {[%clk 0:01:11]} 24... Qxc3 {[%clk 0:01:11.9]} 25.
Qe3 {[%clk 0:01:05.5]} 25... Qxe3 {[%clk 0:01:09.1]} 26. Rxe3 {[%clk 0:01:03]}
26... f5 {[%clk 0:01:08.5]} 27. Bg2 {[%clk 0:01:02.8]} 27... Rc7 {[%clk
0:01:08.2]} 28. Bf1 {[%clk 0:00:32.6]} 28... Rec8 {[%clk 0:01:04.7]} 29. c4
{[%clk 0:00:32]} 29... e4 {[%clk 0:00:50.1]} 30. Rb1 {[%clk 0:00:17.4]} 30...
Rc5 {[%clk 0:00:37.4]} 31. b4 {[%clk 0:00:15.5]} 31... R5c7 {[%clk 0:00:34.8]}
32. cxb5 {[%clk 0:00:15.1]} 32... axb5 {[%clk 0:00:32.3]} 33. Bxb5 {[%clk
0:00:14]} 33... Nxd5 {[%clk 0:00:32.4]} 34. Ra3 {[%clk 0:00:12.5]} 34... Nc3
{[%clk 0:00:31.3]} 35. Rxc3 {[%clk 0:00:11.8]} 35... Rxc3 {[%clk 0:00:32.1]} 36.
a4 {[%clk 0:00:10.8]} 36... d5 {[%clk 0:00:30.1]} 37. a5 {[%clk 0:00:10.2]}
37... d4 {[%clk 0:00:30.7]} 38. a6 {[%clk 0:00:09.4]} 38... d3 {[%clk
0:00:31.2]} 39. Kg2 {[%clk 0:00:07.8]} 39... d2 {[%clk 0:00:28.5]} 40. Rd1
{[%clk 0:00:07.2]} 40... Rd8 {[%clk 0:00:27.4]} 41. a7 {[%clk 0:00:05.9]} 41...
Ra3 {[%clk 0:00:27.3]} 42. Bc4+ {[%clk 0:00:05.5]} 42... Kg7 {[%clk 0:00:27.3]}
43. Kf1 {[%clk 0:00:06]} 43... Rxa7 {[%clk 0:00:26.8]} 44. Ke2 {[%clk
0:00:05.9]} 44... Ra4 {[%clk 0:00:26.8]} 45. Rxd2 {[%clk 0:00:05.6]} 45... Rxd2+
{[%clk 0:00:26.4]} 46. Kxd2 {[%clk 0:00:06.5]} 46... Rxb4 {[%clk 0:00:27]} 47.
Be2 {[%clk 0:00:06.7]} 47... Rb2+ {[%clk 0:00:26.6]} 48. Ke3 {[%clk 0:00:06.3]}
48... Kf6 {[%clk 0:00:26.9]} 49. h4 {[%clk 0:00:05.5]} 49... Ke5 {[%clk
0:00:26.2]} 0-1

[Event "*** Titled Tuesday Blitz"]
[Site "Chess.com"]
[Date "2020.05.19"]
[Round "7"]
[White "Gennady_Kozlov"]
[Black "Msb2"]
[Result "0-1"]
[WhiteElo "2589"]
[BlackElo "2892"]
[TimeControl "180+1"]
[EndTime "13:20:52 PDT"]
[Termination "Msb2 won by resignation"]

1. b3 {[%clk 0:02:54.9]} 1... d5 {[%clk 0:02:58.8]} 2. Bb2 {[%clk 0:02:55.8]}
2... Bf5 {[%clk 0:02:59.4]} 3. e3 {[%clk 0:02:55.3]} 3... e6 {[%clk 0:02:59.5]}
4. f4 {[%clk 0:02:55.1]} 4... h6 {[%clk 0:02:55.5]} 5. Nf3 {[%clk 0:02:55.6]}
5... Nf6 {[%clk 0:02:55.2]} 6. Be2 {[%clk 0:02:55.5]} 6... c5 {[%clk 0:02:55.1]}
7. O-O {[%clk 0:02:55.9]} 7... Be7 {[%clk 0:02:55.7]} 8. d3 {[%clk 0:02:52.9]}
8... Nc6 {[%clk 0:02:56.2]} 9. Qe1 {[%clk 0:02:53]} 9... d4 {[%clk 0:02:54.5]}
10. e4 {[%clk 0:02:52]} 10... Bh7 {[%clk 0:02:54.9]} 11. Nbd2 {[%clk 0:02:45.7]}
11... Qc7 {[%clk 0:02:50.9]} 12. g3 {[%clk 0:02:36.4]} 12... Ng4 {[%clk
0:02:24.7]} 13. Nc4 {[%clk 0:02:33.4]} 13... b5 {[%clk 0:02:24.2]} 14. h3 {[%clk
0:02:33.1]} 14... bxc4 {[%clk 0:02:18.6]} 15. hxg4 {[%clk 0:02:32.7]} 15... c3
{[%clk 0:02:19.4]} 16. Bc1 {[%clk 0:02:29.1]} 16... g5 {[%clk 0:02:19.4]} 17.
fxg5 {[%clk 0:02:16.2]} 17... hxg5 {[%clk 0:02:20.3]} 18. Bxg5 {[%clk
0:02:15.8]} 18... Bg6 {[%clk 0:02:06.8]} 19. Bxe7 {[%clk 0:02:11.4]} 19... Qxe7
{[%clk 0:02:05.1]} 20. Nh4 {[%clk 0:02:10.6]} 20... e5 {[%clk 0:02:00.9]} 21.
Qf2 {[%clk 0:02:09.7]} 21... Nb4 {[%clk 0:01:43.5]} 22. Bd1 {[%clk 0:02:08.3]}
22... a5 {[%clk 0:01:40.7]} 23. a3 {[%clk 0:02:07.3]} 23... Nc6 {[%clk
0:01:40.2]} 24. Nxg6 {[%clk 0:02:05.6]} 24... fxg6 {[%clk 0:01:40.3]} 25. Qf6
{[%clk 0:02:06]} 25... Kd7 {[%clk 0:01:25.2]} 26. g5 {[%clk 0:02:01.4]} 26...
Raf8 {[%clk 0:01:16.9]} 27. Bg4+ {[%clk 0:01:59.9]} 27... Kc7 {[%clk 0:01:17.4]}
28. Qxe7+ {[%clk 0:01:55.7]} 28... Nxe7 {[%clk 0:01:18.3]} 29. Rf6 {[%clk
0:01:55.5]} 29... Rxf6 {[%clk 0:00:54.1]} 30. gxf6 {[%clk 0:01:56.4]} 30... Nc6
{[%clk 0:00:54.7]} 31. Rf1 {[%clk 0:01:50]} 31... Kd6 {[%clk 0:00:55]} 32. Kg2
{[%clk 0:01:42.2]} 32... Nd8 {[%clk 0:00:53.2]} 33. Bc8 {[%clk 0:01:37]} 33...
Rf8 {[%clk 0:00:33.7]} 34. g4 {[%clk 0:01:22.3]} 34... Nf7 {[%clk 0:00:27.9]}
35. Ba6 {[%clk 0:01:17.7]} 35... Ng5 {[%clk 0:00:27.1]} 36. Bc4 {[%clk
0:01:13.2]} 36... Nh7 {[%clk 0:00:27.5]} 37. f7 {[%clk 0:01:10.3]} 37... Ke7
{[%clk 0:00:28]} 38. b4 {[%clk 0:00:57.9]} 38... cxb4 {[%clk 0:00:25.7]} 39.
axb4 {[%clk 0:00:57.9]} 39... axb4 {[%clk 0:00:26.6]} 40. Ra1 {[%clk 0:00:55.2]}
40... Ng5 {[%clk 0:00:27]} 41. Ra7+ {[%clk 0:00:51.6]} 41... Kf6 {[%clk
0:00:27.2]} 42. Ra6+ {[%clk 0:00:52.1]} 42... Kg7 {[%clk 0:00:27.7]} 43. Rb6
{[%clk 0:00:47.5]} 43... Nxf7 {[%clk 0:00:28]} 44. Rxb4 {[%clk 0:00:43.3]} 44...
Ng5 {[%clk 0:00:28.3]} 45. Rb7+ {[%clk 0:00:37.9]} 45... Kh6 {[%clk 0:00:28.3]}
46. Rb6 {[%clk 0:00:36.4]} 46... Rf3 {[%clk 0:00:27.2]} 47. Rb5 {[%clk
0:00:29.9]} 47... Re3 {[%clk 0:00:27.2]} 48. Rxe5 {[%clk 0:00:25.3]} 48... Re2+
{[%clk 0:00:27]} 49. Kg3 {[%clk 0:00:24.8]} 49... Rxc2 {[%clk 0:00:27.6]} 50.
Re8 {[%clk 0:00:23]} 50... Rc1 {[%clk 0:00:24]} 51. Rh8+ {[%clk 0:00:22.4]}
51... Kg7 {[%clk 0:00:24.2]} 52. Rg8+ {[%clk 0:00:23.3]} 52... Kf6 {[%clk
0:00:23.5]} 53. Rf8+ {[%clk 0:00:23.1]} 53... Ke7 {[%clk 0:00:23.1]} 54. Rc8
{[%clk 0:00:21.8]} 54... c2 {[%clk 0:00:22]} 0-1